bitfinex/quotes_ETHUSD_20260119
["timestamp","ask_amount","ask_price","bid_price","bid_amount"]
[1768796633625,0.91164104,3206.2,3205.0,0.002]
[1768796633930,0.91164104,3206.2,3205.0,0.92764104]
[1768796634295,0.91164104,3206.0,3205.1,4.04566849]
[1768796634494,0.91164104,3206.0,3205.1,5.39744135]
[1768796636326,0.91164104,3206.0,3205.1,8.5174688]
[1768796636801,0.91164104,3206.0,3205.2,0.92564104]
[1768796637004,0.91164104,3206.0,3205.4,0.92564104]
[1768796637212,0.91164104,3205.9,3205.5,0.92564104]
[1768796637612,3.11863995,3206.6,3205.7,0.92564104]
[1768796637809,3.11863995,3206.6,3205.4,0.67615881]
[1768796637810,0.91164104,3207.1,3205.9,6.83007139]
[1768796638136,0.91164104,3206.9,3206.0,0.99412429]
[1768796638303,6.2367469,3206.8,3205.8,9.94939265]
[1768796638508,0.91164104,3206.7,3205.8,9.94939265]
[1768796638709,0.91164104,3206.7,3205.8,8.95526836]
[1768796638906,0.91164104,3206.7,3205.9,0.99412429]
[1768796640438,0.91164104,3206.7,3206.1,0.99412429]
[1768796640617,0.515,3206.6,3206.1,0.99412429]
[1768796640934,3.11839738,3206.8,3206.1,0.99412429]
[1768796641119,0.515,3206.7,3206.1,0.99412429]
[1768796641518,0.91164104,3206.6,3205.8,0.99412429]
[1768796642305,0.91164104,3206.6,3205.9,0.99412429]
[1768796642505,0.91164104,3206.5,3205.9,4.11333883]
[1768796642834,0.515,3206.7,3206.3,0.99412429]
[1768796645738,3.11813626,3207.1,3206.4,0.99412429]
[1768796646037,0.515,3206.9,3206.4,0.99412429]
[1768796646343,1.42664104,3206.9,3206.4,0.99412429]
[1768796647041,0.91164104,3207.3,3206.5,0.99412429]
[1768796647226,6.23480266,3207.8,3206.4,3.1187392]
[1768796647227,0.515,3207.4,3206.8,0.99412429]
[1768796647630,0.91164104,3207.6,3206.8,0.99412429]
[1768796647823,0.515,3207.6,3207.0,0.99412429]
[1768796648024,0.91164104,3207.5,3206.6,0.99412429]
[1768796649249,0.91164104,3207.5,3206.7,6.2369414]
[1768796649414,0.515,3207.6,3206.8,0.99412429]
[1768796649839,1.42664104,3207.6,3206.8,0.99412429]
[1768796650341,0.91164104,3208.2,3206.9,0.99412429]
[1768796650525,0.91164104,3208.0,3206.9,0.99412429]
[1768796651749,0.91164104,3207.8,3207.1,0.99412429]
[1768796652044,3.11730415,3207.9,3207.1,0.99412429]
[1768796652347,0.91264104,3207.7,3207.2,1.40535462]
[1768796652645,0.91264104,3207.7,3207.2,0.99412429]
[1768796653613,3.11759571,3207.6,3207.2,0.99412429]
[1768796654042,4.02923675,3207.6,3207.2,0.99412429]
[1768796654341,4.02923675,3207.6,3206.9,0.99412429]
[1768796655448,0.91164104,3207.6,3206.9,0.99412429]
[1768796655947,4.03017649,3207.7,3207.0,0.99412429]
[1768796656248,4.79642648,3207.7,3207.0,0.99412429]
[1768796656449,0.91164104,3207.6,3207.0,0.99412429]
[1768796657719,0.001,3207.7,3207.1,0.99412429]
[1768796657921,0.91264104,3207.7,3207.1,0.99412429]
[1768796659146,0.91264104,3207.7,3207.2,0.99412429]
[1768796660145,0.91164104,3207.6,3207.2,0.99412429]
[1768796662255,0.001,3207.7,3207.2,0.99412429]
[1768796662437,0.91264104,3207.7,3207.2,0.99412429]
[1768796662637,0.001,3207.7,3207.2,0.99412429]
[1768796664327,0.001,3207.3,3207.2,0.99412429]
[1768796664659,0.001,3207.7,3207.2,0.92009492]
[1768796665525,0.91571971,3207.6,3207.2,0.92009492]
[1768796665736,0.91571971,3207.6,3207.0,3.11814039]
[1768796665959,0.91571971,3207.6,3207.1,0.92009492]
[1768796667864,0.515,3207.5,3207.1,0.92009492]
[1768796668103,0.91571971,3207.4,3206.9,0.92009492]
[1768796670085,0.91571971,3207.3,3206.9,0.92009492]
[1768796671198,0.91571971,3207.3,3206.7,0.92009492]
[1768796671500,0.91571971,3207.3,3206.8,0.92009492]
[1768796672069,1.37055696,3207.4,3206.9,0.92009492]
[1768796672269,0.91571971,3207.4,3206.9,0.92009492]
[1768796672756,0.515,3207.5,3206.9,0.92009492]
[1768796674884,0.515,3207.5,3207.0,0.92009492]
[1768796676309,0.001,3207.3,3207.0,0.92009492]
[1768796679168,0.001,3207.3,3207.1,0.93314672]
[1768796679482,0.45590579,3207.7,3207.1,0.93314672]
[1768796679483,0.001,3207.7,3207.2,0.93314672]
[1768796680473,0.515,3207.9,3207.5,0.93314672]
[1768796682737,0.515,3207.9,3207.6,0.93314672]
[1768796684011,0.515,3207.9,3207.7,0.93314672]
[1768796685517,0.9904284,3208.4,3207.7,0.93314672]
[1768796685685,1.5054284,3208.3,3207.7,0.93314672]
[1768796686813,0.9904284,3208.2,3207.7,0.93314672]
[1768796689415,0.9904284,3208.2,3207.7,4.05064469]
[1768796689920,0.9904284,3208.2,3207.7,0.93314672]
[1768796691814,0.9904284,3208.2,3207.7,4.05063585]
[1768796693321,0.9904284,3208.2,3207.8,0.96799968]
[1768796696029,0.9904284,3208.2,3207.6,3.11756378]
[1768796696199,0.9904284,3208.2,3207.7,0.96799968]
[1768796696399,0.9904284,3208.2,3207.7,4.08548474]
[1768796696599,0.9904284,3208.2,3207.8,3.11738256]
[1768796697021,0.9904284,3208.2,3207.8,4.08538224]
[1768796698014,0.9904284,3208.2,3207.8,4.08538067]
[1768796698697,0.9904284,3208.2,3207.8,0.96799968]
[1768796699021,0.9904284,3208.2,3207.7,3.11746562]
[1768796699728,0.9904284,3208.2,3207.6,4.08553052]
[1768796700207,0.9904284,3208.2,3207.7,3.11749357]
[1768796700424,0.9904284,3208.2,3207.7,4.08549325]
[1768796700930,0.001,3207.9,3207.7,4.08549325]
[1768796702324,0.001,3207.9,3207.8,0.96799968]
[1768796702701,0.99127772,3208.2,3207.6,0.96799968]
[1768796702896,0.99127772,3208.2,3207.5,6.23537212]
[1768796702897,0.99127772,3208.2,3207.7,1.68833686]
[1768796703102,0.99127772,3208.2,3207.5,4.0856789]
[1768796703516,0.99127772,3208.2,3207.5,0.96799968]
[1768796705241,0.99127772,3208.1,3207.3,0.002]
[1768796705409,0.99127772,3207.8,3207.3,0.002]
[1768796705623,0.99127772,3207.6,3207.3,0.002]
[1768796707633,0.99127772,3207.5,3207.3,0.002]
[1768796712228,4.10901697,3207.5,3207.3,0.002]
[1768796712429,0.99127772,3207.4,3207.3,0.002]
[1768796715915,0.99127772,3207.6,3207.3,0.002]
[1768796716133,1.45365882,3207.6,3207.3,0.002]
[1768796717521,0.99127772,3207.5,3207.3,0.002]
[1768796718335,1.45365882,3207.6,3207.3,0.002]
[1768796721124,4.57126505,3207.6,3207.3,0.002]
[1768796721659,0.99127772,3207.6,3207.3,0.002]
[1768796722336,1.50627772,3207.6,3207.3,0.002]
[1768796722531,0.515,3207.6,3207.3,0.002]
[1768796722744,0.515,3207.6,3207.3,0.97654564]
[1768796723360,0.515,3207.6,3207.3,0.002]
[1768796724337,3.1174319,3207.8,3207.3,0.002]
[1768796724338,1.43085742,3207.8,3207.3,0.97654564]
[1768796724750,0.91585742,3207.7,3207.3,0.97654564]
[1768796725041,0.91585742,3207.7,3207.6,0.002]
[1768796730992,0.91585742,3207.7,3207.3,0.002]
[1768796730993,0.91585742,3207.6,3207.3,0.002]
[1768796731371,0.91585742,3207.6,3207.0,0.97654564]
[1768796731372,0.91585742,3207.6,3207.0,0.002]
[1768796732105,0.91585742,3207.4,3207.0,0.002]
[1768796732277,0.91585742,3207.1,3207.0,0.002]
[1768796733099,0.91585742,3207.1,3206.1,0.97454564]
[1768796733699,0.91585742,3207.1,3206.2,0.97454564]
[1768796734168,0.91585742,3207.1,3206.2,4.09350145]
[1768796734377,0.91585742,3206.9,3206.3,0.97454564]
[1768796734572,1.43085742,3206.8,3206.3,0.97454564]
[1768796735089,1.43085742,3206.8,3206.0,0.002]
[1768796735090,0.91585742,3206.7,3206.1,0.97454564]
[1768796735292,0.91585742,3206.7,3206.0,0.97654564]
[1768796736598,0.91585742,3206.7,3206.4,0.002]
[1768796737988,4.03436101,3206.7,3206.4,0.002]
[1768796738472,0.515,3206.8,3206.4,0.002]
[1768796738673,0.515,3206.8,3206.4,0.92850964]
[1768796739624,3.6333743,3206.8,3206.4,0.92850964]
[1768796739907,1.28352809,3206.8,3206.4,0.92850964]
[1768796740230,0.515,3206.8,3206.4,0.92850964]
[1768796742908,0.515,3207.0,3206.4,0.92850964]
[1768796744108,1.44872601,3207.0,3206.4,0.92850964]
[1768796746507,0.93372601,3206.9,3206.4,0.92850964]
[1768796746811,0.93372601,3206.9,3206.4,0.002]
[1768796747311,0.93372601,3206.9,3206.4,0.92850964]
[1768796747679,3.63321968,3207.0,3206.4,0.92850964]
[1768796747680,0.515,3207.0,3206.4,0.92850964]
[1768796747876,4.56691609,3207.0,3206.4,0.92850964]
[1768796748176,5.33540833,3207.0,3206.4,0.92850964]
[1768796748381,1.70221825,3207.0,3206.4,0.92850964]
[1768796748577,0.515,3206.9,3206.4,0.92850964]
[1768796748808,0.515,3206.9,3206.7,0.002]
[1768796751413,3.11789815,3207.3,3206.7,0.92850964]
[1768796751414,0.93372601,3207.3,3206.7,0.92850964]
[1768796751617,3.11759571,3207.6,3206.8,0.92650964]
[1768796751784,0.515,3207.5,3206.8,0.92650964]
[1768796752136,0.93372601,3207.8,3206.8,0.92650964]
[1768796752304,0.515,3207.9,3207.1,0.92650964]
[1768796752624,0.96555023,3208.2,3207.4,0.91065647]
[1768796752834,4.08253413,3208.3,3207.5,0.91065647]
[1768796753210,4.08253413,3208.3,3207.6,0.91065647]
[1768796754244,0.96555023,3208.3,3207.6,0.91065647]
[1768796755623,0.96555023,3208.3,3207.7,0.91065647]
[1768796757649,0.515,3208.4,3207.8,0.91065647]
[1768796757799,1.48055023,3208.4,3207.8,0.91065647]
[1768796758005,4.59738832,3208.4,3207.8,0.91065647]
[1768796758547,0.96555023,3208.3,3207.8,0.91065647]
[1768796759246,4.08246585,3208.3,3207.8,0.91065647]
[1768796759747,0.96555023,3208.3,3207.8,0.91065647]
[1768796759951,4.08247107,3208.3,3207.8,0.91065647]
[1768796760148,0.96555023,3208.3,3207.8,0.91065647]
[1768796760455,0.001,3208.0,3207.8,0.91065647]
[1768796760655,0.96655023,3208.5,3207.9,0.91065647]
[1768796760854,0.96655023,3208.5,3207.8,4.10413782]
[1768796760855,4.59708484,3208.7,3208.2,0.91065647]
[1768796761652,0.96555023,3208.6,3208.0,0.91065647]
[1768796762618,3.63153461,3208.7,3207.7,0.514]
[1768796762619,0.515,3208.7,3208.1,0.91065647]
[1768796762821,0.515,3208.7,3208.2,4.02761515]
[1768796763081,1.48055023,3208.7,3208.2,0.91065647]
[1768796763332,1.48055023,3208.7,3208.1,3.11709685]
[1768796763333,0.96555023,3208.6,3208.1,0.91065647]
[1768796763575,0.515,3208.7,3208.2,0.91065647]
[1768796763773,1.48055023,3208.7,3208.2,0.91065647]
[1768796766356,1.48055023,3208.7,3208.2,4.02764529]
[1768796766558,1.48055023,3208.7,3208.3,0.91065647]
[1768796766776,0.96555023,3208.7,3208.3,0.91065647]
[1768796767488,0.515,3208.8,3208.3,0.91065647]
[1768796767663,1.48055023,3208.8,3208.3,0.91065647]
[1768796769690,0.515,3208.8,3208.3,0.91065647]
[1768796769890,0.96555023,3208.7,3208.3,0.91065647]
[1768796770301,0.96555023,3208.7,3208.0,0.91065647]
[1768796770471,0.96555023,3208.7,3208.1,0.91065647]
[1768796772071,0.96555023,3208.7,3208.4,0.002]
[1768796773099,0.96555023,3208.6,3208.4,0.002]
[1768796774500,4.08220049,3208.6,3208.4,0.002]
[1768796775492,0.96555023,3208.5,3208.4,0.002]
[1768796775707,4.08220049,3208.6,3208.4,0.002]
[1768796777169,0.96555023,3208.6,3208.4,0.002]
[1768796777370,4.08210909,3208.7,3208.4,0.002]
[1768796777579,0.96555023,3208.7,3208.4,0.002]
[1768796777881,0.515,3208.8,3208.4,0.91265647]
[1768796777882,3.63144239,3208.8,3208.4,0.91265647]
[1768796778082,4.90548488,3208.8,3208.4,0.002]
[1768796780299,4.90548488,3208.8,3208.4,0.91265647]
[1768796781773,4.59699262,3208.8,3208.4,0.002]
[1768796781974,7.71343501,3208.8,3208.4,0.002]
[1768796782705,7.71343501,3208.8,3208.4,0.9258367]
[1768796782706,4.59699262,3208.8,3208.4,0.9258367]
[1768796783200,4.59699262,3208.8,3208.4,0.002]
[1768796783714,3.63144239,3208.8,3208.4,0.002]
[1768796783884,4.62799034,3208.8,3208.4,0.002]
[1768796784770,0.001,3208.5,3208.4,0.002]
[1768796784975,3.115319,3210.0,3208.9,0.9238367]
[1768796784976,0.99654795,3210.0,3208.9,0.9238367]
[1768796785202,0.99654795,3209.9,3209.2,0.9238367]
[1768796786084,0.99654795,3209.7,3209.2,0.9238367]
[1768796787320,1.71929453,3209.7,3209.2,0.9238367]
[1768796787610,0.99654795,3209.7,3209.2,0.9238367]
[1768796788115,4.11211295,3209.7,3209.2,0.9238367]
[1768796789283,0.99654795,3209.9,3209.2,0.9238367]
[1768796790290,4.1119878,3209.9,3209.2,0.9238367]
[1768796790486,3.11543985,3209.9,3209.2,0.9238367]
[1768796790682,0.99654795,3209.8,3209.2,0.9238367]
[1768796792816,4.11201373,3209.8,3209.2,0.9238367]
[1768796793017,0.99654795,3209.8,3209.2,0.9238367]
[1768796793222,4.11200872,3209.8,3209.2,0.9238367]
[1768796794328,0.99654795,3209.7,3209.2,0.9238367]
[1768796796327,0.001,3209.5,3209.2,0.9238367]
[1768796796528,0.001,3209.5,3209.2,1.32783392]
[1768796799531,0.001,3209.5,3209.0,4.07249745]
[1768796799831,0.001,3209.5,3209.1,0.95629233]
[1768796802611,0.001,3209.5,3209.2,0.95629233]
[1768796803016,0.93342404,3209.5,3208.9,0.95629233]
[1768796804745,0.93342404,3209.5,3209.0,0.95629233]
[1768796807642,0.001,3209.5,3209.1,0.95629233]
[1768796808035,0.001,3209.5,3209.3,0.95829233]
[1768796811143,0.001,3209.5,3209.3,0.002]
[1768796814849,0.001,3209.5,3209.3,0.9513534]
[1768796815149,0.001,3209.5,3209.3,0.002]
[1768796817672,0.001,3209.5,3209.3,0.9513534]
[1768796818018,0.35374612,3209.4,3209.3,0.9513534]
[1768796818218,0.35374612,3209.4,3209.3,0.002]
[1768796820058,0.35374612,3209.4,3209.3,0.9513534]
[1768796820259,4.06366323,3210.0,3209.4,0.9493534]
[1768796820557,0.80581183,3209.9,3209.4,0.9493534]
[1768796820855,0.514,3209.9,3209.4,0.9493534]
[1768796822425,1.46237968,3209.9,3209.4,0.9493534]
[1768796822625,0.514,3209.9,3209.4,0.9493534]
[1768796826868,0.94837968,3210.0,3209.5,0.9493534]
[1768796827057,0.29177849,3209.9,3209.5,0.9493534]
[1768796827366,0.94837968,3210.0,3209.5,0.9493534]
[1768796827667,0.001,3210.3,3209.9,0.9493534]
[1768796827870,3.11579272,3210.5,3209.9,0.9493534]
[1768796828084,0.94837968,3210.4,3209.6,0.9493534]
[1768796828982,0.94837968,3210.3,3209.6,0.9493534]
[1768796829183,0.94837968,3210.1,3209.3,0.002]
[1768796830468,0.94837968,3210.1,3209.3,0.9513534]
[1768796831046,0.94837968,3209.9,3209.3,0.9513534]
[1768796832077,0.94837968,3209.9,3209.8,0.002]
[1768796835968,4.57757857,3210.1,3209.8,0.002]
[1768796836299,1.46237968,3210.1,3209.8,0.002]
[1768796837893,4.57756122,3210.1,3209.8,0.002]
[1768796838096,0.94837968,3210.0,3209.8,0.002]
[1768796840001,3.62982722,3210.5,3209.8,0.9513534]
[1768796840176,4.5782069,3210.5,3209.8,0.9513534]
[1768796840375,0.94837968,3210.4,3209.8,0.9513534]
[1768796840990,0.94837968,3210.3,3209.8,0.002]
[1768796842080,3.11504401,3210.3,3209.8,0.002]
[1768796842281,0.94837968,3210.2,3209.8,0.002]
[1768796842707,0.001,3210.5,3209.8,0.99325373]
[1768796843905,0.95075056,3210.5,3209.8,0.99325373]
[1768796844296,0.95075056,3210.5,3209.9,0.99125373]
[1768796845577,0.001,3210.5,3210.1,0.99125373]
[1768796847716,3.11500815,3211.3,3210.5,0.99125373]
[1768796847943,1.233397,3211.2,3210.5,0.99125373]
[1768796848097,0.94975056,3211.1,3210.5,0.99125373]
[1768796849132,0.94975056,3211.1,3210.6,0.99125373]
[1768796849431,0.94975056,3211.2,3210.6,0.99125373]
[1768796851112,4.06386691,3211.2,3210.6,0.99125373]
[1768796851321,0.94975056,3211.1,3210.6,0.99125373]
[1768796852919,0.94975056,3211.1,3210.4,0.99125373]
[1768796853143,0.94975056,3211.1,3210.5,0.99125373]
[1768796853527,4.063951,3211.1,3210.5,0.99125373]
[1768796853958,0.94975056,3211.1,3210.5,0.99125373]
[1768796855129,0.515,3211.3,3210.5,0.99125373]
[1768796855333,0.94975056,3211.2,3210.5,0.99125373]
[1768796855654,0.94975056,3211.1,3210.5,0.99125373]
[1768796855808,0.001,3210.8,3210.5,0.99125373]
[1768796856009,0.001,3210.8,3210.5,1.4429313]
[1768796857439,0.001,3210.8,3210.5,0.45167757]
[1768796858637,0.99750973,3210.7,3210.2,0.91507699]
[1768796859831,0.001,3210.8,3210.2,0.91507699]
[1768796860221,0.001,3210.8,3210.3,0.91507699]
[1768796863724,0.99750973,3210.7,3210.3,0.91507699]
[1768796864047,0.99750973,3210.7,3210.1,0.91707699]
[1768796866463,0.99750973,3210.7,3210.2,0.91507699]
[1768796868151,0.99750973,3210.7,3210.4,0.002]
[1768796868447,0.001,3210.5,3210.4,0.002]
[1768796871263,0.99850973,3210.5,3210.1,0.002]
[1768796872031,0.99750973,3212.1,3210.5,0.91507699]
[1768796872261,0.99750973,3211.9,3211.0,0.91507699]
[1768796872559,0.99750973,3211.7,3211.0,0.91507699]
[1768796873124,0.99750973,3211.7,3211.1,0.98245057]
[1768796873767,1.46062995,3211.6,3211.1,0.98245057]
[1768796874071,0.514,3211.6,3211.1,0.98245057]
[1768796874363,0.94662995,3211.5,3211.1,0.98245057]
[1768796875231,0.514,3211.6,3211.1,0.98245057]
[1768796875441,1.46062995,3211.6,3211.1,4.09663839]
[1768796875856,1.46062995,3211.6,3211.1,0.98245057]
[1768796876422,0.94662995,3211.5,3210.9,4.0967769]
[1768796876755,0.94662995,3211.5,3210.6,6.33850049]
[1768796876756,0.94662995,3211.5,3211.0,4.0967213]
[1768796877859,0.94662995,3211.5,3211.1,0.98245057]
[1768796879759,0.94662995,3211.5,3210.8,0.98245057]
[1768796879926,0.94662995,3211.5,3210.9,4.09677587]
[1768796880344,0.94662995,3211.5,3210.9,0.98245057]
[1768796881454,0.94662995,3211.5,3211.0,4.0967057]
[1768796881758,0.001,3211.4,3211.0,0.98245057]
[1768796882649,0.94762995,3211.4,3210.9,4.09681963]
[1768796882849,0.94762995,3211.4,3211.0,0.98245057]
[1768796883047,0.94762995,3211.4,3210.8,4.09686135]
[1768796883457,0.001,3211.4,3211.0,0.98245057]
[1768796883641,0.001,3211.4,3211.0,4.09673964]
[1768796884243,0.001,3211.4,3211.1,0.98245057]
[1768796887940,0.94762995,3211.4,3210.9,4.09681483]
[1768796888470,0.94762995,3211.4,3211.0,0.98245057]
[1768796889062,0.001,3211.4,3211.0,0.98245057]
[1768796890546,0.94662995,3212.5,3211.7,0.98245057]
[1768796890749,3.11274357,3212.6,3211.7,0.98245057]
[1768796890750,0.94662995,3212.3,3211.7,0.98245057]
[1768796893089,0.94662995,3212.3,3211.8,0.98245057]
[1768796893443,0.001,3212.0,3211.8,0.98245057]
[1768796896155,0.001,3212.0,3211.3,0.98245057]
[1768796896156,0.94762995,3212.0,3211.3,0.98245057]
[1768796896477,0.94762995,3212.0,3211.4,0.98245057]
[1768796897177,0.94762995,3212.0,3211.5,0.98245057]
[1768796898776,0.94762995,3212.0,3211.3,3.11397235]
[1768796898996,0.94762995,3212.0,3211.3,4.71923844]
[1768796899284,0.94762995,3212.0,3211.3,3.73678787]
[1768796899484,0.94762995,3212.0,3211.4,0.98245057]
[1768796900787,0.94762995,3212.0,3211.5,0.98245057]
[1768796903058,0.001,3212.0,3211.6,0.92217356]
[1768796903383,0.001,3212.0,3211.7,0.92217356]
[1768796907595,0.514,3212.3,3211.9,0.92217356]
[1768796908294,0.99134728,3212.4,3211.9,0.92217356]
[1768796908460,0.514,3212.3,3211.9,0.92217356]
[1768796911199,1.50534728,3212.3,3211.9,0.92217356]
[1768796912400,0.514,3212.4,3211.9,0.92217356]
[1768796912586,0.99134728,3212.5,3212.0,0.92217356]
[1768796912762,1.50534728,3212.5,3212.0,0.92217356]
[1768796913599,0.99134728,3212.4,3212.0,0.92217356]
[1768796917012,0.001,3212.1,3212.0,0.92217356]
[1768796923818,0.514,3212.5,3212.0,0.92738593]
[1768796923978,1.44735281,3212.5,3212.0,0.92738593]
[1768796924180,1.44735281,3212.5,3212.0,4.04070377]
[1768796925905,1.44735281,3212.5,3212.0,0.92738593]
[1768796927698,0.514,3212.5,3212.1,0.92738593]
[1768796927898,1.44735281,3212.5,3212.1,0.92738593]
[1768796928625,0.001,3212.2,3212.1,0.92738593]
[1768796930032,0.001,3212.2,3212.1,4.04061403]
[1768796930397,1.44735281,3212.6,3212.1,3.82862984]
[1768796930597,1.44735281,3212.6,3212.2,0.92738593]
[1768796932833,1.41453885,3212.7,3212.2,4.04048954]
[1768796933029,1.41453885,3212.7,3212.2,0.92738593]
[1768796933208,1.41453885,3212.7,3212.2,4.04051499]
[1768796935248,0.90053885,3212.6,3212.2,0.92738593]
[1768796935400,0.90053885,3212.6,3212.2,4.04051079]
[1768796937937,0.514,3212.7,3212.2,4.04051079]
[1768796938715,1.41453885,3212.8,3212.3,0.92211533]
[1768796939321,0.514,3212.8,3212.2,3.11312486]
[1768796939554,0.90053885,3212.7,3212.2,5.35604849]
[1768796939739,0.90053885,3212.7,3212.3,0.92211533]
[1768796942447,1.41453885,3212.8,3212.3,0.92211533]
[1768796942741,0.90053885,3212.7,3212.3,0.92211533]
[1768796944730,0.514,3212.8,3212.3,0.92211533]
[1768796944932,1.41453885,3212.8,3212.3,4.03514699]
[1768796945137,0.514,3212.9,3212.4,0.92211533]
[1768796945344,1.41453885,3212.9,3212.4,0.92211533]
[1768796945846,0.90053885,3212.8,3212.3,3.11303166]
[1768796946046,0.90053885,3212.8,3212.3,4.03514699]
[1768796947955,0.90053885,3212.8,3212.4,0.92211533]
[1768796948521,0.514,3212.9,3212.4,0.92211533]
[1768796949222,1.41453885,3212.9,3212.4,0.92211533]
[1768796949657,1.41453885,3212.9,3212.4,4.03502216]
[1768796950042,1.41453885,3212.9,3212.5,0.92211533]
[1768796950934,0.90053885,3213.1,3212.5,0.92211533]
[1768796951127,1.41453885,3213.1,3212.5,0.92211533]
[1768796951531,0.90053885,3213.1,3212.5,0.92211533]
[1768796952057,0.90053885,3213.1,3212.6,0.92211533]
[1768796954466,0.90053885,3213.2,3212.6,0.92211533]
[1768796954753,0.90053885,3213.2,3212.7,0.92211533]
[1768796954754,1.41453885,3213.2,3212.7,0.92211533]
[1768796954960,0.90053885,3213.1,3212.7,0.92211533]
[1768796955169,0.514,3213.2,3212.7,0.92211533]
[1768796955949,1.41453885,3213.2,3212.7,0.92211533]
[1768796956158,0.90053885,3213.1,3212.4,3.1129147]
[1768796956463,0.90053885,3213.1,3212.6,0.92211533]
[1768796956833,0.90053885,3213.2,3212.6,0.92211533]
[1768796957658,0.90053885,3213.2,3212.7,0.92211533]
[1768796960757,0.90053885,3213.2,3212.6,0.92211533]
[1768796960952,0.90053885,3213.2,3212.6,4.03485615]
[1768796961535,0.90053885,3213.2,3212.6,0.92211533]
[1768796962075,0.90053885,3213.1,3212.4,0.92211533]
[1768796962230,0.90053885,3213.1,3212.4,4.03499798]
[1768796962590,0.90053885,3213.1,3212.5,0.93793998]
[1768796962932,0.90053885,3213.1,3212.4,3.11288265]
[1768796963148,0.90053885,3213.1,3212.5,0.93793998]
[1768796963332,0.001,3212.9,3212.5,0.93793998]
[1768796963939,0.001,3212.9,3212.6,0.93793998]
[1768796967167,0.001,3212.9,3212.5,1.65432455]
[1768796967580,0.001,3212.9,3212.6,0.93793998]
[1768796968554,0.001,3212.9,3212.5,1.65432455]
[1768796970115,0.001,3212.9,3212.6,0.93793998]
[1768796970878,0.001,3212.9,3212.5,3.82921468]
[1768796970879,0.001,3212.9,3212.5,1.65432455]
[1768796971078,0.001,3212.9,3212.5,0.93793998]
[1768796971306,0.001,3212.9,3212.5,3.11280063]
[1768796971479,0.001,3212.9,3212.6,0.93793998]
[1768796972007,1.45767137,3213.3,3212.7,0.93793998]
[1768796972371,0.94367137,3213.2,3212.7,0.93793998]
[1768796972772,1.45767137,3213.3,3212.7,0.93793998]
[1768796972972,1.45767137,3213.3,3212.8,0.93793998]
[1768796973168,0.514,3213.3,3212.8,0.93793998]
[1768796973373,0.94367137,3213.2,3212.8,0.93793998]
[1768796974613,0.94367137,3213.2,3212.8,4.05048467]
[1768796974804,0.94367137,3213.2,3212.8,0.93793998]
[1768796975120,0.001,3212.9,3212.8,0.93793998]
[1768796975819,3.11177828,3213.6,3212.8,0.93793998]
[1768796975820,0.79467137,3214.4,3213.3,0.93793998]
[1768796976683,0.94367137,3214.2,3213.5,0.93793998]
[1768796977628,0.94367137,3214.2,3213.3,0.93793998]
[1768796977816,0.94367137,3214.2,3213.3,4.04996857]
[1768796978130,0.94367137,3214.2,3213.3,4.0500006]
[1768796978286,0.94367137,3214.2,3213.3,5.20447344]
[1768796978736,3.11129087,3214.1,3213.4,0.92513059]
[1768796979013,0.98206782,3214.0,3213.4,0.92513059]
[1768796979414,0.98206782,3214.0,3213.3,1.15447284]
[1768796980316,0.98206782,3214.0,3213.1,0.92513059]
[1768796980815,6.73658174,3214.1,3213.1,0.92513059]
[1768796980816,0.98206782,3213.8,3213.1,0.92513059]
[1768796983032,0.98206782,3213.7,3213.0,0.513]
[1768796983331,0.98206782,3213.7,3213.0,4.55048494]
[1768796983532,0.98206782,3213.7,3213.1,0.92513059]
[1768796983904,0.98206782,3213.7,3213.2,0.92513059]
[1768796984738,0.98206782,3213.7,3213.0,3.56739317]
[1768796985035,0.98206782,3213.7,3213.0,0.45504849]
[1768796985200,0.98206782,3213.7,3212.9,0.92513059]
[1768796985402,0.98206782,3213.6,3212.9,4.03752051]
[1768796986708,0.98206782,3213.6,3213.2,0.002]
[1768796987243,0.98206782,3213.5,3213.2,0.002]
[1768796988040,0.98206782,3213.5,3212.9,0.92713059]
[1768796988409,0.98206782,3213.5,3212.9,4.03953927]
[1768796988605,0.98206782,3213.5,3212.9,4.4947932]
[1768796989238,0.98206782,3213.5,3212.9,4.03953927]
[1768796991344,0.98206782,3213.5,3212.9,0.92713059]
[1768796991547,0.98206782,3213.5,3212.9,4.03956769]
[1768796991759,0.98206782,3213.5,3212.9,0.92713059]
[1768796992259,0.98206782,3213.5,3212.9,0.002]
[1768796992411,0.98206782,3213.5,3212.9,0.92713059]
[1768796994229,0.93690504,3213.4,3212.9,0.92713059]
[1768796995348,0.93690504,3213.2,3212.7,0.95015875]
[1768796995570,0.93690504,3213.2,3212.3,0.95015875]
[1768796995748,0.93690504,3213.2,3212.3,0.513]
[1768796996053,0.93690504,3213.2,3212.4,0.95015875]
[1768796996458,0.93690504,3213.0,3212.4,0.95015875]
[1768796997230,0.93690504,3213.0,3212.2,4.0632893]
[1768796997231,0.93690504,3212.9,3212.2,4.0632893]
[1768796997430,0.93690504,3212.9,3212.2,4.5762893]
[1768796997733,0.93690504,3212.9,3212.3,0.95015875]
[1768796999648,0.93690504,3212.8,3212.3,0.95015875]
[1768797000022,0.93690504,3212.8,3212.4,0.002]
[1768797000226,3.11246865,3212.9,3212.4,0.95215875]
[1768797000555,4.71747856,3212.9,3212.4,0.95215875]
[1768797000919,1.60500991,3212.9,3212.4,0.95215875]
[1768797001957,4.71750588,3212.9,3212.4,0.95215875]
[1768797003058,0.93690504,3212.7,3212.4,0.002]
[1768797003262,0.93690504,3212.5,3212.4,0.002]
[1768797003964,0.93690504,3212.7,3212.4,0.002]
[1768797007601,0.93690504,3212.6,3212.4,0.002]
[1768797007957,3.11258731,3212.8,3212.4,0.95215875]
[1768797007958,0.93690504,3212.8,3212.4,0.95215875]
[1768797008153,1.38778768,3212.8,3212.4,0.95215875]
[1768797008355,4.50036834,3212.8,3212.4,0.95215875]
[1768797008869,0.93690504,3212.7,3212.4,0.002]
[1768797011056,4.04955597,3212.7,3212.4,0.002]
[1768797011262,3.11265093,3212.7,3212.4,0.002]
[1768797011574,1.2932584,3212.6,3212.4,0.002]
[1768797012371,0.35635336,3212.6,3212.4,0.002]
[1768797012568,4.50037798,3212.8,3212.4,0.95215875]
[1768797012569,0.45088264,3212.8,3212.4,0.95215875]
[1768797012772,0.514,3212.9,3212.4,0.95215875]
[1768797013373,4.56333375,3213.0,3212.4,0.95215875]
[1768797013864,3.62642871,3213.0,3212.4,0.95215875]
[1768797014183,0.93690504,3212.8,3212.4,0.002]
[1768797015507,4.04952893,3212.8,3212.4,0.002]
[1768797015705,0.93690504,3212.7,3211.7,0.95015875]